bitfinex-derivatives/quotes_SOLF0:USTF0_20250929
["timestamp","ask_amount","ask_price","bid_price","bid_amount"]
[1759112066303,7.38,209.68,209.65,9.0046499]
[1759112066599,4.2902,209.69,209.66,5.3046499]
[1759112066802,7.38,209.68,209.66,5.3046499]
[1759112067104,4.2902,209.69,209.66,5.3046499]
[1759112067402,4.2897,209.71,209.67,6.70207302]
[1759112067703,11.6697,209.71,209.68,3.7]
[1759112067906,7.38,209.7,209.68,9.0046499]
[1759112068103,7.38,209.7,209.68,3.7]
[1759112068297,4.2897,209.71,209.68,3.7]
[1759112068694,11.6697,209.71,209.68,3.7]
[1759112068894,11.6697,209.71,209.68,9.0046499]
[1759112069206,11.6697,209.71,209.68,3.7]
[1759112069906,4.29,209.7,209.68,3.7]
[1759112070309,7.38,209.69,209.67,5.3046499]
[1759112070607,7.38,209.72,209.66,5.3046499]
[1759112070805,11.6697,209.71,209.7,3.98056953]
[1759112071006,11.6697,209.71,209.7,6.953e-05]
[1759112076512,11.6697,209.71,209.68,5.3046499]
[1759112076717,11.6697,209.71,209.68,9.0046499]
[1759112076907,7.38,209.7,209.68,9.0046499]
[1759112077111,7.38,209.7,209.68,3.7]
[1759112077412,7.38,209.7,209.68,9.0046499]
[1759112080122,11.67,209.7,209.68,9.0046499]
[1759112080620,7.38,209.69,209.68,5.3046499]
[1759112080820,7.38,209.69,209.67,9.0046499]
[1759112081121,7.38,209.69,209.68,5.3046499]
[1759112092923,7.38,209.69,209.68,4.99e-05]
[1759112093228,7.38,209.66,209.63,3.7]
[1759112093628,7.38,209.69,209.63,3.7]
[1759112094629,7.95,209.65,209.63,3.7]
[1759112100227,7.95,209.67,209.59,11.71850106]
[1759112100423,66.7398,209.68,209.58,1.23927852]
[1759112100424,68.14222312,209.66,209.58,9.25777958]
[1759112100622,7.95,209.63,209.58,1.23927852]
[1759112101022,7.95,209.6,209.58,1.23927852]
[1759112102729,7.95,209.59,209.56,0.34409]
[1759112103229,4.2923,209.58,209.56,0.34409]
[1759112103431,7.95,209.57,209.56,0.34409]
[1759112105332,7.95,209.59,209.57,3.7]
[1759112105636,7.95,209.59,209.56,0.34409]
[1759112105837,4.2919,209.6,209.56,0.34409]
[1759112106534,7.95,209.59,209.56,0.34409]
[1759112106726,7.95,209.59,209.56,4.04409]
[1759112106934,7.95,209.62,209.57,3.7]
[1759112107235,7.95,209.62,209.56,0.34409]
[1759112108336,7.95,209.62,209.56,4.04409]
[1759112108539,7.95,209.65,209.56,4.04409]
[1759112108832,7.95,209.65,209.59,7.9919]
[1759112109137,7.95,209.7,209.6,3.7]
[1759112109332,4.2903,209.68,209.61,3.7]
[1759112109527,7.95,209.67,209.61,3.7]
[1759112110637,12.2407,209.67,209.61,3.7]
[1759112110938,7.95,209.67,209.61,3.7]
[1759112113732,12.2406,209.67,209.61,3.7]
[1759112115839,7.95,209.67,209.61,3.7]
[1759112117943,7.95,209.67,209.61,7.9915]
[1759112118143,7.95,209.67,209.61,4.2915]
[1759112118350,7.49,209.7,209.63,3.67]
[1759112121143,11.78,209.7,209.63,3.67]
[1759112121437,66.7228,209.73,209.6,65.67]
[1759112121637,7.49,209.63,209.57,3.67]
[1759112122841,7.49,209.65,209.56,108.02]
[1759112123051,66.7455,209.66,209.56,108.02]
[1759112124240,7.76,209.65,209.56,108.02]
[1759112124640,4.2917,209.62,209.56,108.02]
[1759112125149,7.76,209.64,209.56,108.02]
[1759112125443,7.76,209.6,209.56,108.02]
[1759112125644,7.76,209.63,209.56,108.02]
[1759112125946,66.7524,209.64,209.56,108.02]
[1759112126245,7.76,209.63,209.56,108.02]
[1759112126545,7.76,209.6,209.56,108.02]
[1759112126747,7.76,209.63,209.56,108.02]
[1759112126947,66.7524,209.64,209.56,108.02]
[1759112127444,7.76,209.63,209.56,108.02]
[1759112127638,4.2921,209.6,209.56,108.02]
[1759112127847,7.76,209.59,209.56,111.72]
[1759112128646,7.76,209.58,209.56,108.02]
[1759112128845,4.2923,209.59,209.56,108.02]
[1759112129047,7.76,209.58,209.56,108.02]
[1759112130446,7.76,209.6,209.52,0.32712]
[1759112130638,7.76,209.58,209.52,0.32712]
[1759112131550,4.2929,209.55,209.52,0.32712]
[1759112131748,7.76,209.54,209.52,0.32712]
[1759112132152,4.2929,209.55,209.52,0.32712]
[1759112132352,7.76,209.54,209.52,0.32712]
[1759112132552,4.2929,209.55,209.52,0.32712]
[1759112133245,7.76,209.54,209.52,0.32712]
[1759112133855,4.2929,209.55,209.52,0.32712]
[1759112134050,7.76,209.54,209.52,0.32712]
[1759112134258,4.2929,209.55,209.52,0.32712]
[1759112134457,7.76,209.54,209.52,0.32712]
[1759112134650,4.2929,209.55,209.52,0.32712]
[1759112134954,7.76,209.54,209.52,0.32712]
[1759112137351,4.2929,209.55,209.52,0.32712]
[1759112137551,7.76,209.54,209.52,0.32712]
[1759112137753,4.2929,209.55,209.52,0.32712]
[1759112138451,7.76,209.54,209.52,0.32712]
[1759112138656,4.2929,209.55,209.52,0.32712]
[1759112139659,7.76,209.54,209.52,0.32712]
[1759112139854,4.2929,209.55,209.52,0.32712]
[1759112140558,4.2929,209.55,209.49,7.67812754]
[1759112140762,12.0529,209.55,209.49,7.67812754]
[1759112141954,12.0529,209.55,209.49,3.7]
[1759112142156,12.0529,209.55,209.49,7.67812754]
[1759112147554,7.76,209.53,209.49,7.67812754]
[1759112147758,4.2933,209.54,209.49,7.67812754]
[1759112148159,7.76,209.53,209.49,3.97812754]
[1759112148463,7.76,209.53,209.5,3.7]
[1759112149767,4.2933,209.54,209.5,3.7]
[1759112149967,7.76,209.53,209.5,3.7]
[1759112150266,12.0528,209.56,209.5,7.67812754]
[1759112150662,4.2934,209.53,209.5,3.7]
[1759112150867,7.76,209.52,209.5,3.7]
[1759112152969,7.76,209.52,209.49,3.7]
[1759112153570,7.76,209.52,209.5,3.7]
[1759112155071,7.76,209.52,209.49,7.68812754]
[1759112155870,7.76,209.52,209.5,3.71]
[1759112158073,7.76,209.52,209.5,7.68812754]
[1759112158372,7.8,209.54,209.51,3.71]
[1759112158667,4.293,209.55,209.51,3.71]
[1759112158971,7.8,209.54,209.5,3.97812754]
[1759112159165,4.293,209.55,209.5,7.68812754]
[1759112159365,7.8,209.54,209.5,7.68812754]
[1759112159561,4.293,209.55,209.5,7.68812754]
[1759112159970,7.8,209.54,209.5,7.68812754]
[1759112160381,4.293,209.55,209.5,7.68812754]
[1759112160572,4.293,209.55,209.5,3.97812754]
[1759112160877,7.8,209.57,209.5,3.97812754]
[1759112161683,4.2935,209.53,209.5,3.97812754]
[1759112161979,7.8,209.52,209.5,3.97812754]
[1759112162180,4.2935,209.53,209.5,3.97812754]
[1759112162370,12.0937,209.52,209.5,3.97812754]
[1759112162577,7.8,209.51,209.49,2.754e-05]
[1759112162777,2.18547184,209.53,209.44,43.04]
[1759112163281,7.8,209.52,209.44,43.04]
[1759112163681,12.094,209.5,209.44,43.04]
[1759112163980,7.8,209.57,209.47,3.71]
[1759112164478,7.8,209.54,209.49,1.3987673]
[1759112164684,1.3987673,209.56,209.49,3.71]
[1759112164873,7.8,209.55,209.47,1.3987673]
[1759112166082,4.2935,209.53,209.47,1.3987673]
[1759112166282,4.2935,209.53,209.47,6.70246071]
[1759112167585,7.8,209.52,209.48,9.01369341]
[1759112167982,7.8,209.52,209.49,3.71]
[1759112170283,7.8,209.52,209.49,9.01369341]
[1759112172390,7.8,209.52,209.5,5.30369341]
[1759112172684,7.34,209.54,209.49,9.01369341]
[1759112172882,4.2929,209.55,209.49,9.01369341]
[1759112173083,4.2929,209.55,209.5,5.30369341]
[1759112173278,7.34,209.54,209.5,5.30369341]
[1759112173478,4.2929,209.55,209.5,5.30369341]
[1759112174088,7.34,209.54,209.5,5.30369341]
[1759112174389,4.2929,209.55,209.5,5.30369341]
[1759112174588,7.34,209.53,209.5,5.30369341]
[1759112174990,4.2933,209.54,209.5,5.30369341]
[1759112175186,7.34,209.53,209.5,5.30369341]
[1759112175883,4.2938,209.51,209.48,5.30369341]
[1759112176082,7.34,209.5,209.47,9.01369341]
[1759112176893,7.34,209.52,209.48,9.01369341]
[1759112177389,4.2938,209.51,209.48,5.30369341]
[1759112177594,7.34,209.5,209.47,9.01369341]
[1759112177790,7.34,209.5,209.48,3.71]
[1759112177990,7.34,209.5,209.48,9.01369341]
[1759112178190,7.34,209.5,209.48,3.71]
[1759112178391,7.34,209.5,209.48,9.01369341]
[1759112178585,7.34,209.5,209.48,3.71]
[1759112178990,7.34,209.5,209.47,5.30369341]
[1759112179290,7.34,209.5,209.44,19.62959796]
[1759112179291,7.34,209.5,209.46,9.01369341]
[1759112179491,4.2939,209.51,209.46,9.01369341]
[1759112179691,7.34,209.5,209.46,9.01369341]
[1759112179897,7.34,209.5,209.47,3.71]
[1759112180592,4.2939,209.51,209.47,3.71]
[1759112181097,7.34,209.5,209.47,3.71]
[1759112181298,4.2939,209.51,209.47,3.71]
[1759112181493,7.34,209.5,209.47,3.71]
[1759112181700,7.34,209.5,209.46,5.30369341]
[1759112181893,4.2941,209.5,209.46,5.30369341]
[1759112182194,7.34,209.49,209.46,5.30369341]
[1759112182400,7.34,209.47,209.45,5.30369341]
[1759112182802,4.2944,209.48,209.45,5.30369341]
[1759112183101,7.34,209.47,209.45,5.30369341]
[1759112183298,7.34,209.47,209.44,23.53452407]
[1759112183691,7.41,209.47,209.44,18.23083066]
[1759112184198,4.2944,209.48,209.45,3.72]
[1759112184399,7.41,209.47,209.45,3.72]
[1759112184797,4.294,209.5,209.44,14.52083066]
[1759112185002,7.41,209.49,209.43,10.71743071]
[1759112186098,7.41,209.49,209.44,5.30369341]
[1759112186496,7.41,209.49,209.46,3.72]
[1759112187404,7.41,209.52,209.46,3.72]
[1759112188196,11.7036,209.52,209.46,3.72]
[1759112190402,7.41,209.52,209.45,5.30369341]
[1759112190602,1.3987673,209.53,209.44,19.63911448]
[1759112190802,7.41,209.5,209.44,5.30369341]
[1759112191002,7.41,209.5,209.43,9.31866341]
[1759112191497,4.2942,209.49,209.43,9.31866341]
[1759112191802,11.7042,209.49,209.43,9.31866341]
[1759112192897,11.7042,209.49,209.44,5.30369341]
[1759112193093,7.41,209.47,209.43,5.59866341]
[1759112193300,7.41,209.47,209.45,3.72]
[1759112193501,7.41,209.47,209.44,3.72]
[1759112196604,7.41,209.47,209.43,6.99743071]
[1759112196805,7.41,209.47,209.44,3.72]
[1759112197005,7.41,209.47,209.43,21.46518088]
[1759112197306,7.41,209.47,209.44,3.72]
[1759112197708,4.2942,209.49,209.44,3.72]
[1759112198302,7.41,209.48,209.45,3.72]
[1759112198503,4.2937,209.52,209.46,3.72]
[1759112198706,11.7037,209.52,209.46,3.72]
[1759112204112,11.7037,209.52,209.46,9.02369341]
[1759112207213,7.41,209.51,209.47,9.02369341]
[1759112207518,4.2937,209.52,209.47,9.02369341]
[1759112207718,7.41,209.51,209.47,9.02369341]
[1759112207919,4.2937,209.52,209.47,9.02369341]
[1759112208214,7.41,209.51,209.48,9.02369341]
[1759112208518,4.2937,209.52,209.48,9.02369341]
[1759112208818,7.41,209.51,209.48,9.02369341]
[1759112209118,4.2937,209.52,209.48,9.02369341]
[1759112209512,7.41,209.51,209.48,9.02369341]
[1759112209913,4.2937,209.52,209.48,9.02369341]
[1759112210120,4.2939,209.51,209.48,5.30369341]
[1759112210317,7.41,209.5,209.48,5.30369341]
[1759112211120,4.2939,209.51,209.46,5.30369341]
[1759112211415,7.41,209.5,209.47,3.72]
[1759112211717,4.2939,209.51,209.47,3.72]
[1759112212118,7.41,209.5,209.47,3.72]
[1759112212318,4.2939,209.51,209.47,3.72]
[1759112212513,7.41,209.5,209.47,3.72]
[1759112212714,7.41,209.57,209.5,3.72]
[1759112212909,7.41,209.57,209.51,1.3987673]
[1759112213721,7.48,209.55,209.52,3.71]
[1759112214216,11.7722,209.59,209.53,1.3987673]
[1759112214521,7.48,209.63,209.56,3.71]
[1759112214820,7.48,209.63,209.56,9.01369341]
[1759112215220,7.48,209.63,209.56,3.71]
[1759112215617,11.7713,209.63,209.56,3.71]
[1759112216318,11.7713,209.63,209.56,5.1087673]
[1759112216822,4.2917,209.62,209.56,5.1087673]
[1759112219822,7.48,209.63,209.56,5.1087673]
[1759112221728,11.7713,209.63,209.56,5.1087673]
[1759112223731,11.7713,209.63,209.41,78.34347176]
[1759112223732,7.48,209.59,209.48,9.01369341]
[1759112223934,7.48,209.59,209.51,1.3987673]
[1759112224233,7.48,209.59,209.5,3.71]
[1759112224928,11.7723,209.59,209.5,3.71]
[1759112225931,4.2925,209.58,209.5,3.71]
[1759112226130,7.48,209.58,209.5,3.71]
[1759112226434,7.48,209.58,209.47,9.01369341]
[1759112226639,7.48,209.56,209.47,3.71]
[1759112227523,7.48,209.55,209.47,3.71]
[1759112228737,7.48,209.51,209.47,3.71]
[1759112229628,4.2937,209.52,209.47,3.71]
[1759112229825,7.48,209.51,209.47,3.71]
[1759112230034,7.48,209.51,209.46,116.72]
[1759112231135,7.48,209.51,209.47,3.71]
[1759112232637,4.2937,209.52,209.47,3.71]
[1759112232936,7.51,209.51,209.47,3.71]
[1759112233634,11.8032,209.54,209.47,3.71]
[1759112233835,11.8032,209.54,209.47,4.02505]
[1759112234537,4.2935,209.53,209.47,4.02505]
[1759112235436,11.8035,209.53,209.47,4.02505]
[1759112238643,7.51,209.53,209.47,4.02505]
[1759112238841,7.51,209.53,209.47,9.32874341]
[1759112241744,7.51,209.53,209.48,4.2942]
[1759112241938,7.51,209.56,209.51,3.71]
[1759112242137,7.51,209.56,209.51,116.7]
[1759112242749,7.51,209.55,209.51,120.41]
[1759112243149,7.51,209.55,209.52,3.71]
[1759112243951,7.5,209.55,209.52,3.71]
[1759112244646,7.5,209.55,209.51,116.7]
[1759112244851,4.2923,209.58,209.52,3.7]
[1759112245047,7.5,209.59,209.52,3.7]
[1759112245553,7.5,209.59,209.53,3.7]
[1759112246647,7.5,209.59,209.53,7.9932]
[1759112246846,7.5,209.59,209.53,4.2932]
[1759112247045,7.5,209.59,209.54,3.7]
[1759112247648,7.5,209.59,209.53,4.2932]
[1759112247854,7.5,209.59,209.54,3.7]
[1759112248050,7.5,209.59,209.53,9.59689341]
[1759112248256,7.5,209.59,209.54,3.7]
[1759112248959,7.5,209.59,209.52,3.7]
[1759112249657,7.5,209.59,209.53,4.2932]
[1759112249958,7.5,209.59,209.53,66.2932]
[1759112251463,4.2918,209.61,209.53,66.2932]
[1759112251664,7.5,209.6,209.54,3.7]
[1759112252667,11.7921,209.6,209.54,3.7]
[1759112252959,7.5,209.59,209.51,120.4]
[1759112253159,7.5,209.59,209.51,7.9936]
[1759112253360,66.7608,209.61,209.52,116.64]
[1759112253558,7.5,209.6,209.52,116.64]
[1759112253757,7.5,209.61,209.52,116.64]
[1759112253962,2.18499858,209.62,209.52,116.64]
[1759112254158,2.18499858,209.62,209.52,120.34]
[1759112254364,7.5,209.61,209.52,120.34]
[1759112254564,4.2923,209.59,209.52,120.34]
[1759112254762,7.5,209.58,209.52,120.34]
[1759112255068,7.5,209.58,209.52,116.64]
[1759112255371,4.2923,209.59,209.52,116.64]
[1759112255667,11.7923,209.59,209.53,3.7]
[1759112259474,66.7617,209.61,209.53,116.62]
[1759112259766,7.5,209.6,209.52,116.62]
[1759112260167,66.7617,209.61,209.52,116.62]
[1759112260375,7.5,209.56,209.52,116.62]
[1759112260572,7.5,209.56,209.53,3.7]
[1759112267475,4.2927,209.57,209.53,3.7]
[1759112267675,7.5,209.56,209.53,3.7]
[1759112269477,4.2927,209.57,209.53,3.7]
[1759112270578,7.5,209.56,209.53,3.7]
[1759112271479,4.2927,209.57,209.53,3.7]
[1759112272278,7.5,209.56,209.53,3.7]
[1759112274377,4.2921,209.6,209.53,3.71]
[1759112274581,7.5,209.59,209.53,3.71]
[1759112277584,7.5,209.59,209.53,8.0032]
[1759112279089,7.5,209.61,209.54,5.33571213]
[1759112279889,7.5,209.61,209.54,9.62871213]
[1759112280084,4.2916,209.62,209.54,9.62871213]
[1759112280289,7.5,209.61,209.54,9.62871213]
[1759112281081,4.2916,209.62,209.54,9.62871213]
[1759112281286,7.5,209.61,209.54,9.62871213]
[1759112281486,7.5,209.61,209.55,4.2928]
[1759112282289,4.2916,209.62,209.55,9.62851213]
[1759112282486,7.5,209.61,209.55,9.62851213]
[1759112282689,4.2916,209.62,209.55,9.62851213]
[1759112282886,7.5,209.63,209.56,4.2926]
[1759112283091,7.5,209.63,209.55,9.04571213]
[1759112283284,7.5,209.63,209.56,5.33571213]
[1759112283483,7.5,209.63,209.57,5.33571213]
[1759112284688,4.2912,209.64,209.57,9.62811213]
[1759112284888,7.5,209.63,209.57,9.62811213]
[1759112285095,4.2912,209.64,209.57,9.62811213]
[1759112285495,7.5,209.63,209.57,9.62811213]
[1759112285990,7.5,209.65,209.57,5.33571213]
[1759112286196,7.5,209.65,209.59,5.33571213]
[1759112286691,7.5,209.66,209.6,3.71]
[1759112287196,7.5,209.66,209.6,9.04571213]
[1759112288588,7.5,209.68,209.61,8.0016]
[1759112291793,7.5,209.68,209.61,13.33731213]
[1759112292899,7.5,209.68,209.61,8.0016]
[1759112293401,7.5,209.68,209.61,9.39912478]
[1759112293594,7.5,209.68,209.62,3.69]
[1759112298402,7.5,209.68,209.63,1.39752478]
[1759112298603,7.73,209.7,209.63,5.08752478]
[1759112300096,7.73,209.7,209.63,125.85862478]
[1759112300293,1.39752478,209.76,209.67,5.89752478]
[1759112300494,1.39752478,209.78,209.7,4.5]
[1759112300708,4.2885,209.77,209.7,4.5]
[1759112301908,4.288,209.79,209.71,1.39752478]
[1759112302107,1.39752478,209.81,209.72,4.5]
[1759112302299,7.73,209.79,209.72,18.72328723]
[1759112302500,7.73,209.79,209.72,4.5]
[1759112305706,12.0182,209.79,209.72,4.5]
[1759112306911,12.0182,209.79,209.72,18.79763408]
[1759112308305,7.96,209.78,209.72,18.79763408]
[1759112308910,7.96,209.78,209.72,14.29763408]
[1759112309114,7.96,209.78,209.69,1.39752478]
[1759112309614,7.96,209.78,209.68,92.27]
[1759112309615,1.39752478,209.75,209.68,4.51]
[1759112309915,7.96,209.72,209.68,14.15737227]
[1759112310113,7.96,209.72,209.65,4.51]
[1759112310507,4.2898,209.71,209.65,4.51]
[1759112312810,4.2901,209.69,209.62,1.39752478]
[1759112313010,7.96,209.68,209.61,4.51]
[1759112313211,7.96,209.68,209.61,120.93]
[1759112315019,7.96,209.68,209.61,134.95478459]
[1759112317219,7.96,209.68,209.62,1.39752478]
[1759112317413,4.2897,209.72,209.65,4.51]
[1759112317717,7.96,209.74,209.67,4.51]
[1759112318215,1.39752478,209.72,209.63,5.90752478]
[1759112318519,7.96,209.71,209.63,5.90752478]
[1759112319618,4.2902,209.69,209.63,5.90752478]
[1759112321214,7.96,209.68,209.63,1.39752478]
[1759112321515,1.39752478,209.7,209.62,4.51]
[1759112321714,7.96,209.69,209.62,4.51]
[1759112322420,4.2906,209.67,209.61,134.95478459]
[1759112323512,7.96,209.66,209.61,134.95478459]
[1759112323716,12.2506,209.67,209.61,130.44478459]
[1759112324126,12.2508,209.66,209.62,4.51]
[1759112326316,4.2908,209.66,209.62,4.51]
[1759112326519,7.96,209.65,209.62,4.51]
[1759112327028,1.39752478,209.66,209.61,14.02478459]
[1759112327223,1.39752478,209.64,209.56,51.14752478]
[1759112327414,7.96,209.63,209.56,51.14752478]
[1759112327816,1.39752478,209.64,209.56,49.75]
[1759112328018,7.96,209.63,209.56,49.75]
[1759112328319,66.7421,209.67,209.56,46.63752478]
[1759112328527,1.39752478,209.68,209.6,1.39752478]
[1759112328817,4.2907,209.66,209.61,4.51]
[1759112329717,4.2907,209.66,209.6,1.39752478]
[1759112330117,4.2907,209.66,209.6,5.90752478]
[1759112330623,7.96,209.67,209.6,5.90752478]
[1759112330825,1.39752478,209.66,209.6,4.51]
[1759112331016,7.96,209.65,209.57,98.80752478]
[1759112332619,4.2915,209.63,209.57,98.80752478]
[1759112332825,7.96,209.65,209.58,4.51]
[1759112333724,12.2509,209.65,209.58,4.51]
[1759112335520,4.2913,209.64,209.58,4.51]
[1759112336123,4.2913,209.64,209.58,120.91]
[1759112337926,4.2913,209.64,209.58,116.4]
[1759112338322,4.2913,209.64,209.59,4.51]
[1759112338927,4.2913,209.64,209.58,116.4]
[1759112339123,9.37752478,209.66,209.58,116.4]
[1759112339124,12.2707,209.66,209.59,4.51]
[1759112340326,9.37752478,209.66,209.59,4.51]
[1759112340924,12.2713,209.63,209.59,4.51]
[1759112341618,7.98,209.62,209.59,4.51]
[1759112341817,1.39752478,209.66,209.59,4.51]
[1759112341818,4.2909,209.65,209.59,4.51]
[1759112342525,4.2905,209.67,209.6,4.51]
[1759112346233,4.2905,209.67,209.6,9.84571213]
[1759112347533,12.2701,209.69,209.61,4.51]
[1759112347835,7.98,209.74,209.63,4.51]
[1759112348028,7.98,209.74,209.65,4.51]
[1759112348434,4.2897,209.71,209.65,4.51]
[1759112348638,7.98,209.79,209.66,9.84571213]
[1759112348832,7.98,209.79,209.69,4.51]
[1759112349635,4.2889,209.75,209.69,4.51]
[1759112350735,12.2685,209.77,209.69,4.51]
[1759112351742,4.2888,209.76,209.69,4.51]
[1759112353044,66.7081,209.78,209.69,4.51]
[1759112353240,9.53308765,209.77,209.68,5.33571213]
[1759112353537,9.53308765,209.77,209.67,5.33571213]
[1759112354539,4.2893,209.73,209.67,5.33571213]
[1759112354742,11.6393,209.73,209.66,121.69571213]
[1759112355442,7.35,209.73,209.66,121.69571213]
[1759112355649,66.7416,209.67,209.6,8.01850106]
[1759112355845,9.53308765,209.68,209.58,4.49]
[1759112356248,7.35,209.66,209.58,4.49]
[1759112356745,71.0326,209.67,209.55,117.54196605]
[1759112356746,7.35,209.64,209.55,117.54196605]
[1759112357149,7.35,209.64,209.56,4.49]
[1759112359454,7.35,209.64,209.56,18.64115718]
[1759112360154,71.0395,209.65,209.56,18.64115718]
[1759112360353,7.35,209.64,209.56,18.64115718]
[1759112362153,4.2913,209.63,209.56,18.64115718]
[1759112367864,7.35,209.64,209.57,4.51]
[1759112370958,7.35,209.64,209.58,116.38]
[1759112371162,66.7453,209.66,209.58,116.38]
[1759112371359,11.8214,209.63,209.59,4.51]
[1759112372057,7.53,209.62,209.59,4.51]
[1759112373660,4.2914,209.63,209.59,4.51]
[1759112373852,4.2909,209.65,209.59,4.51]
[1759112374055,11.8209,209.65,209.59,4.51]
[1759112374261,7.53,209.64,209.58,116.38]
[1759112374556,11.8213,209.64,209.58,116.38]
[1759112374957,7.53,209.64,209.58,116.38]
[1759112376059,4.2914,209.63,209.58,116.38]
[1759112376259,11.8214,209.63,209.59,4.51]
[1759112377159,7.53,209.65,209.58,120.89]
[1759112377762,11.821,209.65,209.58,120.89]
[1759112378952,4.2905,209.67,209.59,4.51]
[1759112379457,4.2905,209.67,209.6,4.51]
[1759112379659,4.2909,209.66,209.6,4.51]
[1759112380663,11.8203,209.68,209.6,6.69308765]
[1759112380959,74.2591,209.71,209.57,8.01850106]
[1759112381165,7.53,209.65,209.58,116.36]
[1759112381365,7.53,209.66,209.57,4.51]
[1759112381567,7.53,209.65,209.57,4.51]
[1759112381866,4.2919,209.61,209.57,120.89]
[1759112382164,11.8219,209.61,209.57,120.89]
[1759112382364,11.8219,209.61,209.57,116.38]
[1759112382667,11.8219,209.61,209.58,4.51]
[1759112387669,4.2919,209.61,209.57,116.38]
[1759112387860,4.2919,209.61,209.58,4.51]
[1759112388367,7.53,209.6,209.57,120.89]
[1759112388562,11.8219,209.61,209.58,4.51]
[1759112389760,4.2921,209.6,209.57,116.38]
[1759112390065,11.8221,209.6,209.57,120.89]
[1759112392671,7.53,209.59,209.57,116.38]
[1759112392866,4.2921,209.6,209.57,120.89]
[1759112393072,11.8221,209.6,209.57,120.89]
[1759112394475,11.8421,209.6,209.57,120.89]
[1759112395577,7.55,209.58,209.57,116.38]
[1759112396071,4.2923,209.59,209.57,116.38]
[1759112396778,11.8423,209.59,209.57,116.38]
[1759112396976,11.8423,209.59,209.57,120.86]
[1759112397374,11.8423,209.59,209.57,116.38]
[1759112397976,7.55,209.58,209.57,116.38]
[1759112398175,4.2923,209.59,209.57,116.38]
[1759112398376,11.8423,209.59,209.57,116.38]
[1759112398774,7.55,209.58,209.57,116.38]
[1759112398974,11.8425,209.57,209.56,14.15115718]
[1759112399178,66.7634,209.61,209.54,52.64]
[1759112399569,7.55,209.6,209.54,52.64]
[1759112399773,66.7634,209.61,209.54,52.64]
[1759112399980,7.55,209.6,209.54,52.64]
[1759112400280,66.7634,209.61,209.54,57.96350065]
[1759112400475,11.8429,209.56,209.54,52.64]
[1759112400881,11.8429,209.56,209.54,67.08156819]
[1759112402476,11.8429,209.56,209.54,71.56156819]
[1759112402883,4.2929,209.56,209.54,71.56156819]
[1759112403685,4.2929,209.56,209.54,18.92156819]
[1759112405588,11.8429,209.56,209.54,18.92156819]
[1759112407791,7.55,209.55,209.54,14.44156819]
[1759112407991,4.2929,209.56,209.53,0.33203]
[1759112407992,11.8431,209.54,209.53,0.33203]
[1759112408289,7.55,209.54,209.48,5.32350065]
[1759112408590,7.55,209.54,209.48,19.30975728]
[1759112408791,7.55,209.54,209.48,5.32350065]
[1759112409590,4.2938,209.51,209.48,5.32350065]